bitfinex/quotes_ETHUSD_20220731
["timestamp","ask_amount","ask_price","bid_price","bid_amount"]
[1659311319723,0.3,1682.5,1682.3,0.0270311]
[1659311319924,4.67790293,1682.6,1682.3,0.0270311]
[1659311320160,3.3,1682.6,1682.3,0.0270311]
[1659311320562,3.3,1682.6,1682.0,6.44804672]
[1659311320746,3.3,1682.6,1682.1,2.89804672]
[1659311322674,3.3,1682.6,1682.1,5.39804672]
[1659311323142,3.3,1682.6,1682.2,2.89804672]
[1659311323333,3.3,1682.6,1682.2,6.57403108]
[1659311323532,3.3,1682.6,1682.3,3.34384672]
[1659311323734,0.05,1682.9,1682.4,6.69495672]
[1659311323932,6.3425,1683.1,1682.5,2.89804672]
[1659311324165,6.2925,1683.1,1682.5,2.89804672]
[1659311324366,3.0194,1683.1,1682.5,2.89804672]
[1659311324938,3.3,1683.0,1682.5,2.89804672]
[1659311325181,3.6,1683.0,1682.5,3.34374672]
[1659311325332,3.6,1683.0,1682.6,2.89804672]
[1659311325545,3.6,1683.0,1682.5,3.34374672]
[1659311325745,5.45977784,1683.0,1682.5,2.89804672]
[1659311326345,1.485,1682.9,1682.5,2.89804672]
[1659311326946,3.97485784,1683.0,1682.5,2.89804672]
[1659311327786,0.2970066,1682.9,1682.5,2.89804672]
[1659311328494,1.48513,1682.8,1682.5,0.02692626]
[1659311328699,5.3821606,1682.8,1682.5,0.02692626]
[1659311329475,4.07181208,1682.8,1682.5,0.02692626]
[1659311329689,3.3,1682.7,1682.5,0.02692626]
[1659311330368,6.99364237,1682.8,1682.5,0.02692626]
[1659311330698,9.96410237,1682.8,1682.5,0.02692626]
[1659311330899,6.99364237,1682.8,1682.5,0.02692626]
[1659311331046,5.3821606,1682.8,1682.5,0.02692626]
[1659311331489,3.82294201,1682.8,1682.5,0.02692626]
[1659311331694,3.0,1682.7,1682.5,0.02692626]
[1659311334228,5.28187925,1682.8,1682.5,0.02692626]
[1659311335030,3.6,1682.8,1682.5,0.02692626]
[1659311335381,0.3,1682.8,1682.5,0.02692626]
[1659311335780,5.6555135,1682.9,1682.5,0.02692626]
[1659311336021,4.27187034,1682.9,1682.5,0.02692626]
[1659311336232,3.0,1682.8,1682.5,0.02692626]
[1659311336530,2.45981784,1682.9,1682.5,0.02692626]
[1659311336691,3.0194,1683.1,1682.6,2.89804672]
[1659311337245,7.8632,1683.2,1682.6,2.89804672]
[1659311337399,8.0632,1683.2,1682.6,2.89804672]
[1659311337602,0.2,1683.0,1682.6,2.89804672]
[1659311338123,4.88308672,1683.0,1682.5,0.02692626]
[1659311338435,6.19511952,1682.9,1682.5,0.02692626]
[1659311338736,3.30141566,1682.8,1682.5,0.02692626]
[1659311338892,5.26410455,1682.8,1682.5,0.02692626]
[1659311339098,3.3,1682.7,1682.5,0.02692626]
[1659311339740,3.0,1682.6,1682.5,0.02692626]
[1659311339897,0.3,1682.8,1682.5,0.02692626]
[1659311340101,0.3,1682.9,1682.5,0.02692626]
[1659311341453,3.57290456,1682.9,1682.5,0.02692626]
[1659311341657,4.48517,1682.8,1682.5,0.02692626]
[1659311341892,0.05,1683.1,1682.7,12.89804672]
[1659311342089,1.53457,1683.4,1682.8,3.34374672]
[1659311342295,1.48457,1683.4,1682.9,2.89804672]
[1659311342452,0.05,1683.6,1683.0,2.89804672]
[1659311342650,3.099,1683.8,1683.3,6.5]
[1659311342851,11.0335,1683.9,1683.4,2.89804672]
[1659311343098,6.3194,1684.1,1683.4,2.89804672]
[1659311343753,9.13190031,1684.2,1683.4,2.89804672]
[1659311343987,0.37485784,1684.1,1683.4,7.8163]
[1659311344147,0.37485784,1684.1,1683.3,6.24954672]
[1659311344148,0.3256,1684.0,1683.3,2.906]
[1659311344396,0.3256,1684.0,1683.3,2.856]
[1659311344577,0.37485784,1683.9,1683.3,2.856]
[1659311344783,1.85932784,1683.9,1683.3,2.856]
[1659311345290,5.45932784,1683.9,1683.3,2.856]
[1659311346091,5.75624134,1683.9,1683.3,2.856]
[1659311346263,1.78447,1683.7,1683.3,2.856]
[1659311346463,2.08447,1683.7,1683.3,0.0266119]
[1659311348171,1.48453,1683.6,1683.3,0.0266119]
[1659311348373,4.78453,1683.6,1683.3,0.0266119]
[1659311349048,3.6,1683.7,1683.3,0.0266119]
[1659311349451,1.48437,1683.6,1683.3,0.0266119]
[1659311349665,0.2,1683.5,1683.3,0.0266119]
[1659311350195,1.9816091,1683.5,1683.3,0.0266119]
[1659311350390,2.5816091,1683.5,1683.3,0.0266119]
[1659311350694,2.3816091,1683.5,1683.3,0.0266119]
[1659311350879,3.0,1683.4,1683.3,0.0266119]
[1659311351055,5.08466,1683.5,1683.3,0.0266119]
[1659311351898,3.6,1683.5,1683.3,0.0266119]
[1659311355433,0.3,1683.5,1683.3,0.0266119]
[1659311355633,3.67485784,1683.7,1683.3,0.0266119]
[1659311355856,3.6,1683.7,1683.3,0.0266119]
[1659311356780,7.9165,1683.8,1683.3,0.0266119]
[1659311357549,9.40067,1683.8,1683.3,2.92465862]
[1659311358155,3.3,1683.7,1683.3,2.92465862]
[1659311358457,2.08433,1683.6,1683.3,2.92465862]
[1659311358646,0.3,1683.6,1683.3,0.0266119]
[1659311358846,5.08424,1683.7,1683.3,0.0266119]
[1659311359283,3.6,1683.7,1683.4,2.89804672]
[1659311359487,0.3,1683.7,1683.4,6.69480672]
[1659311359735,0.1257,1683.9,1683.5,2.90149812]
[1659311359881,0.1257,1683.9,1683.5,0.0034514]
[1659311360680,0.34471435,1683.8,1683.3,0.0266119]
[1659311361013,3.33201044,1683.8,1683.3,2.92465862]
[1659311361243,3.3,1683.7,1683.3,2.92465862]
[1659311361528,4.78438,1683.7,1683.5,0.02650718]
[1659311361816,3.27290456,1683.6,1683.5,0.02650718]
[1659311362129,6.67290456,1683.6,1683.5,0.02650718]
[1659311362330,12.93990456,1683.6,1683.5,0.02650718]
[1659311363035,16.36860456,1683.6,1683.5,0.02650718]
[1659311363340,16.31860456,1683.6,1683.5,0.02650718]
[1659311364299,0.2,1683.2,1683.1,0.05]
[1659311364643,4.7522176,1683.1,1682.7,0.05]
[1659311364795,5.0522176,1683.1,1682.7,2.89804672]
[1659311364996,3.0,1683.0,1682.7,2.89804672]
[1659311365300,1.48508,1683.0,1682.7,2.94804671]
[1659311365637,1.48508,1683.0,1682.8,0.0257165]
[1659311365638,3.3,1683.0,1682.8,0.0257165]
[1659311366001,0.3,1683.1,1682.8,0.0257165]
[1659311366204,3.6,1683.3,1682.9,0.04999999]
[1659311366546,3.6,1683.3,1682.9,2.94804671]
[1659311366712,3.6,1683.3,1682.9,3.00477491]
[1659311367957,3.6,1683.3,1683.0,2.89804672]
[1659311368112,0.6,1683.3,1683.0,2.89804672]
[1659311368449,3.3,1683.5,1683.0,2.89804672]
[1659311368746,1.4845,1683.4,1683.0,2.89804672]
[1659311369739,1.4845,1683.4,1683.0,2.92365859]
[1659311370442,1.4845,1683.4,1683.0,0.02561187]
[1659311370443,1.80935784,1683.4,1683.0,0.02561187]
[1659311371175,8.64261194,1683.4,1683.0,0.02561187]
[1659311371393,1.48471,1683.2,1683.0,0.02561187]
[1659311371683,1.48471,1683.2,1682.9,0.10672819]
[1659311371684,0.62485784,1683.4,1682.9,0.10672819]
[1659311372177,2.08453,1683.3,1682.9,0.10672819]
[1659311372480,1.48465,1683.2,1682.9,0.10672819]
[1659311372779,0.3,1683.2,1682.9,3.00477491]
[1659311373078,0.3,1683.4,1682.9,3.00477491]
[1659311373234,3.6,1683.5,1682.9,3.00477491]
[1659311373976,3.6,1683.5,1683.0,2.89804672]
[1659311374133,3.6,1683.5,1683.0,3.19486672]
[1659311374331,3.6,1683.5,1683.1,0.04999999]
[1659311376131,3.6,1683.5,1683.1,2.94804671]
[1659311376536,0.05,1683.7,1683.2,0.4455]
[1659311376849,1.48419,1683.7,1683.1,3.39364671]
[1659311377973,0.62176784,1683.6,1683.1,3.34364672]
[1659311378245,4.65374,1683.5,1683.0,11.3434]
[1659311378470,3.0,1683.4,1683.0,11.3434]
[1659311378663,3.596928,1683.4,1683.1,0.02546847]
[1659311378863,3.896928,1683.4,1683.1,0.02546847]
[1659311379108,1.48464,1683.3,1683.1,0.02546847]
[1659311379305,3.896928,1683.4,1683.1,0.02546847]
[1659311379306,3.6,1683.4,1683.1,0.02546847]
[1659311379615,0.6,1683.4,1683.1,0.02546847]
[1659311379764,0.3,1683.4,1683.1,0.02546847]
[1659311380112,4.48453,1683.3,1683.1,0.02546847]
[1659311380411,3.0,1683.2,1683.1,0.02546847]
[1659311380563,3.6,1683.5,1683.1,0.02546847]
[1659311380765,3.6,1683.5,1683.1,2.92351519]
[1659311381471,3.6,1683.5,1683.1,0.02546847]
[1659311381472,1.48447,1683.4,1683.1,0.02546847]
[1659311382852,1.7813855,1683.4,1683.1,0.02546847]
[1659311383170,2.08463,1683.3,1683.1,0.02546847]
[1659311383318,5.08463,1683.3,1683.1,0.02546847]
[1659311384424,2.08463,1683.3,1683.1,0.02546847]
[1659311385243,2.08463,1683.3,1683.1,2.92351519]
[1659311385455,0.05,1683.6,1683.2,4.07804671]
[1659311385658,0.05,1683.9,1683.3,2.89804672]
[1659311385896,1.48403,1683.9,1683.3,3.34354672]
[1659311386094,0.2,1683.8,1683.2,13.39664672]
[1659311386592,1.48435,1683.7,1683.1,0.02546847]
[1659311386747,1.80920784,1683.7,1683.1,0.02546847]
[1659311386949,2.40613784,1683.7,1683.1,0.02546847]
[1659311387182,4.4538,1683.6,1683.1,0.02546847]
[1659311387387,3.3,1683.5,1683.1,0.02546847]
[1659311387593,3.6,1683.5,1683.1,0.02546847]
[1659311387894,3.0,1683.4,1683.1,0.02546847]
[1659311388097,1.48445,1683.4,1683.1,0.02546847]
[1659311388906,4.48445,1683.4,1683.1,0.02546847]
[1659311389368,16.64001,1683.8,1683.3,2.89804672]
[1659311389369,0.2,1683.8,1683.3,2.89804672]
[1659311389692,1.17598436,1684.5,1683.3,2.89804672]
[1659311389693,1.13,1685.4,1684.3,9.16504672]
[1659311389895,0.2966091,1685.8,1684.9,3.17104672]
[1659311390102,7.9887,1685.9,1685.3,0.2]
[1659311390459,7.9887,1685.9,1685.4,14.654172]
[1659311390659,0.55,1686.0,1685.8,1.127]
[1659311390971,0.4257,1686.0,1685.9,4.4]
[1659311391173,0.3,1686.0,1685.9,4.4]
[1659311391389,0.4257,1686.0,1685.9,4.4]
[1659311391901,0.3757,1686.0,1685.9,4.4]
[1659311392056,0.3757,1686.0,1684.9,0.6197078]
[1659311392057,12.467,1685.6,1684.9,0.6197078]
[1659311392257,15.967,1685.6,1684.9,0.6197078]
[1659311392466,16.21198436,1685.6,1684.9,0.6197078]
[1659311392667,19.71198436,1685.6,1684.9,0.6197078]
[1659311393056,0.3,1685.5,1684.9,0.6197078]
[1659311393402,6.767,1685.4,1684.9,0.6197078]
[1659311393595,9.267,1685.3,1684.9,0.6197078]
[1659311393803,6.567,1685.3,1684.9,0.6197078]
[1659311394005,0.3,1685.3,1684.9,0.6197078]
[1659311394496,0.2,1685.2,1684.9,0.6197078]
[1659311394699,0.2,1685.2,1685.0,0.02578813]
[1659311395471,14.5,1685.1,1683.9,0.06792]
[1659311395687,14.5,1685.1,1683.4,0.17909644]
[1659311395688,0.5,1684.2,1683.4,0.17909644]
[1659311395884,3.9453,1684.1,1683.2,0.14819272]
[1659311396101,0.7953,1684.1,1683.1,12.52305807]
[1659311396265,0.05,1684.0,1683.1,12.52305807]
[1659311396464,0.25,1684.0,1683.7,0.04144617]
[1659311396807,0.2,1684.0,1683.7,0.04144617]
[1659311398794,2.20126593,1684.1,1683.7,0.04144617]
[1659311399008,0.6,1684.1,1683.7,0.04144617]
[1659311399180,11.1101,1684.2,1683.7,0.04144617]
[1659311399181,11.7101,1684.2,1683.7,0.04144617]
[1659311399699,3.6,1684.2,1683.7,0.04144617]
[1659311399894,0.3,1684.2,1683.7,0.04144617]
[1659311401104,58.45827618,1684.3,1683.7,0.04144617]
[1659311401302,0.2,1684.1,1683.7,0.04144617]
[1659311402844,58.21297618,1684.3,1683.7,0.38616052]
[1659311403051,0.2,1684.1,1683.7,0.04144617]
[1659311403198,0.2,1683.9,1683.7,0.04144617]
[1659311403995,0.2,1684.2,1683.7,0.04144617]
[1659311404396,3.09804672,1684.2,1683.7,0.04144617]
[1659311404850,3.3,1684.1,1683.7,0.04144617]
[1659311404995,0.8,1684.1,1683.7,0.04144617]
[1659311405433,5.12456589,1684.1,1683.7,0.04144617]
[1659311405634,3.0,1684.0,1683.7,0.04144617]
[1659311406150,3.6,1684.1,1683.7,0.38616052]
[1659311406438,0.3,1684.1,1683.7,0.38616052]
[1659311406645,3.6,1684.2,1683.7,0.38616052]
[1659311408475,6.49804672,1684.2,1683.7,0.04144617]
[1659311409170,0.2,1684.1,1683.7,0.04144617]
[1659311409378,0.2,1684.1,1683.8,2.09443577]
[1659311410443,3.09804672,1684.1,1683.8,2.09443577]
[1659311410773,3.6,1684.0,1683.8,2.09443577]
[1659311413484,3.0,1684.3,1683.8,2.09443577]
[1659311413774,0.3,1684.0,1683.8,2.09443577]
[1659311413938,0.3,1684.3,1683.8,2.09443577]
[1659311414276,0.6,1684.3,1683.8,2.09443577]
[1659311417376,2.89804672,1684.2,1683.8,2.09443577]
[1659311417585,3.6,1684.1,1683.8,2.09443577]
[1659311417764,6.49804672,1684.1,1683.8,2.09443577]
[1659311418554,2.89804672,1684.0,1683.8,2.09443577]
[1659311418755,3.8,1683.9,1683.7,0.04144617]
[1659311418985,6.87403108,1683.9,1683.7,0.04144617]
[1659311419768,3.6,1683.9,1683.7,0.04144617]
[1659311424014,9.72995217,1684.0,1683.7,0.04144617]
[1659311424747,9.72995217,1684.0,1683.8,0.34471435]
[1659311424923,0.06798,1684.1,1683.8,0.34471435]
[1659311425127,0.06798,1684.1,1683.7,0.33819617]
[1659311425128,4.45041672,1684.1,1683.7,0.04144617]
[1659311425306,0.2968783,1684.0,1683.7,0.04144617]
[1659311425747,1.48459,1683.9,1683.7,0.04144617]
[1659311426308,5.08459,1683.9,1683.7,0.04144617]
[1659311426811,8.0538,1683.9,1683.7,0.04144617]
[1659311427230,10.95184672,1683.9,1683.7,0.04144617]
[1659311427834,16.89069672,1683.9,1683.7,0.04144617]
[1659311428050,5.08459,1683.9,1683.7,0.04144617]
[1659311429151,3.6,1683.9,1683.7,0.04144617]
[1659311429519,0.6,1683.9,1683.7,0.04144617]
[1659311429720,2.08425,1683.9,1683.7,0.04144617]
[1659311430245,8.05324,1683.9,1683.7,0.04144617]
[1659311430849,5.08425,1683.9,1683.7,0.04144617]
[1659311431071,3.6,1683.9,1683.7,0.04144617]
[1659311431252,3.0,1683.8,1683.5,0.34471435]
[1659311431463,2.127464,1683.9,1683.5,0.64151435]
[1659311431675,2.127464,1683.9,1683.7,0.04213906]
[1659311431676,5.127464,1683.9,1683.7,0.04213906]
[1659311432391,4.527464,1683.9,1683.7,0.04213906]
[1659311432541,1.527464,1683.9,1683.7,0.04213906]
[1659311432743,0.05,1684.3,1683.8,2.89804672]
[1659311432968,2.3335,1684.5,1684.0,0.2]
[1659311433185,12.43527909,1684.6,1684.0,0.2]
[1659311433355,12.43527909,1684.6,1684.1,0.34471435]
[1659311434461,12.43527909,1684.6,1684.2,0.2]
[1659311434840,12.73200819,1684.6,1684.2,0.2]
[1659311435381,12.73200819,1684.6,1684.1,0.36978197]
[1659311435382,12.73201499,1684.6,1684.1,0.36978197]
[1659311435946,14.21576499,1684.6,1684.1,0.36978197]
[1659311436175,0.6,1684.5,1684.1,0.36978197]
[1659311436376,3.6,1684.5,1684.1,0.36978197]
[1659311436783,3.6,1684.5,1684.1,0.66649197]
[1659311437691,3.6,1684.5,1684.1,0.96319197]
[1659311437858,3.8967275,1684.5,1684.1,0.96319197]
[1659311438173,5.57101505,1684.5,1684.1,0.96319197]
[1659311438374,5.57101505,1684.5,1684.1,0.36978197]
[1659311438375,7.05481505,1684.5,1684.1,0.36978197]
[1659311438928,5.57101505,1684.5,1684.1,0.36978197]
[1659311439208,1.48397,1684.4,1684.1,0.36978197]
[1659311441483,12.66504672,1684.3,1684.1,0.02506762]
[1659311441725,6.09804672,1684.2,1684.1,0.02506762]
[1659311441902,15.86504672,1684.2,1684.1,0.02506762]
[1659311442106,16.04103108,1684.2,1684.1,0.02506762]
[1659311442470,12.54103108,1684.2,1684.1,0.02506762]
[1659311443692,12.54103108,1684.2,1684.1,0.02304444]
[1659311444476,12.54103108,1684.2,1684.1,4.444e-05]
[1659311444694,20.01535546,1684.1,1683.7,0.05]
[1659311444923,6.19804672,1684.0,1683.4,0.05]
[1659311445087,6.19804672,1684.0,1683.3,3.3067]
[1659311445279,6.49804672,1684.0,1683.3,3.3067]
[1659311445480,1.48445,1683.8,1683.3,3.65141435]
[1659311445679,2.08445,1683.8,1683.3,3.65141435]
[1659311445884,1.67817342,1683.7,1683.3,1.08707435]
[1659311446221,1.67817342,1683.7,1683.3,2.57125435]
[1659311446644,1.67817342,1683.7,1683.3,1.08707435]
[1659311446835,4.67817342,1683.7,1683.3,0.64157435]
[1659311447349,6.16266342,1683.7,1683.3,0.34471435]
[1659311447716,4.67817342,1683.7,1683.3,0.34471435]
[1659311447943,4.38129932,1683.7,1683.3,5.02380107]
[1659311448144,1.38129932,1683.7,1683.3,2.12575435]
[1659311448349,3.3,1683.6,1683.3,2.12575435]
[1659311448554,0.3,1683.6,1683.3,2.12575435]
[1659311448773,3.3,1683.6,1683.3,2.42258435]
[1659311449267,3.0,1683.5,1683.3,5.32063107]
[1659311449432,2.07355576,1683.6,1683.3,5.32063107]
[1659311450006,2.07355576,1683.6,1683.3,5.34292942]
[1659311450847,2.37040636,1683.6,1683.3,3.85875942]
[1659311451053,2.37040636,1683.6,1683.3,3.56192942]
[1659311451754,2.37040636,1683.6,1683.3,3.85877942]
[1659311452260,2.37040636,1683.6,1683.3,3.56192942]
[1659311452567,5.37040636,1683.6,1683.3,3.26505942]
[1659311452766,3.0,1683.5,1683.3,3.26505942]
[1659311452968,2.37040636,1683.6,1683.3,3.56192942]
[1659311453121,5.37040636,1683.6,1683.3,3.56192942]
[1659311454015,5.37040636,1683.6,1683.3,3.85877942]
[1659311454313,3.3,1683.6,1683.4,2.89804672]
[1659311454518,0.3,1683.6,1683.4,3.09804672]
[1659311454804,0.3,1683.6,1683.4,2.89804672]
[1659311455012,0.3,1683.6,1683.4,3.34354672]
[1659311455215,0.3,1683.6,1683.3,5.44369507]
[1659311455569,0.3,1683.6,1683.3,6.92771507]
[1659311456597,0.5968547,1683.6,1683.3,5.44369507]
[1659311456813,2.31744922,1683.6,1683.3,5.44369507]
[1659311456971,5.31744922,1683.6,1683.3,4.99819507]
[1659311457550,5.31744922,1683.6,1683.3,3.51406507]
[1659311458770,5.31744922,1683.6,1683.4,3.24276107]
[1659311458771,5.00652703,1683.6,1683.4,3.24276107]
[1659311458920,2.00652703,1683.6,1683.4,3.24276107]
[1659311459322,0.5968547,1683.6,1683.4,3.24276107]
[1659311459567,0.2968547,1683.6,1683.4,3.24276107]
[1659311459770,0.3,1683.5,1683.4,0.34471435]
[1659311460764,0.3,1683.5,1683.4,3.24276107]
[1659311461074,3.3,1683.6,1683.4,3.53958107]
[1659311461290,3.0,1683.5,1683.4,3.83641107]
[1659311461508,0.3,1683.6,1683.4,3.83641107]
[1659311461797,0.3,1683.6,1683.4,3.85865737]
[1659311463377,0.6,1683.6,1683.4,0.0222463]
[1659311463754,3.3,1683.6,1683.4,0.0222463]
[1659311463996,0.3,1683.6,1683.4,0.0222463]
[1659311464203,2.29365561,1683.6,1683.4,0.0222463]
[1659311464362,5.29365561,1683.6,1683.4,0.0222463]
[1659311464909,2.29365561,1683.6,1683.4,0.0222463]
[1659311465279,1.99674131,1683.6,1683.4,0.0222463]
[1659311467204,1.99674131,1683.6,1683.0,4.47558]
[1659311467205,3.7,1683.5,1683.0,0.05]
[1659311467412,3.7,1683.5,1682.8,19.6299]
[1659311467413,2.89804672,1683.4,1682.8,19.6299]
[1659311467574,7.3970065,1683.3,1682.8,11.72]
[1659311467777,6.84404672,1683.2,1682.8,11.72]
[1659311467962,0.2,1683.0,1682.5,0.05]
[1659311468166,0.9461,1683.0,1682.4,7.8599]
[1659311468404,5.51394376,1683.0,1682.4,7.8599]
[1659311468610,0.3,1682.9,1682.2,2.7906]
[1659311468818,3.3,1682.9,1682.2,7.8599]
[1659311468998,3.3,1682.9,1682.2,8.03379139]
[1659311468999,0.7431812,1682.8,1682.2,8.03379139]
[1659311469201,1.0431812,1682.8,1682.2,8.03379139]
[1659311469710,1.98670564,1682.8,1682.3,0.29699]
[1659311469913,1.98670564,1682.8,1682.4,2.89804672]
[1659311470111,1.98670564,1682.8,1682.4,3.19499672]
[1659311470324,1.98670564,1682.8,1682.4,3.53971107]
[1659311470529,1.98670564,1682.8,1682.4,3.24276107]
[1659311471774,1.98670564,1682.8,1682.4,3.85835439]
[1659311472178,5.3959,1683.0,1682.6,6.5]
[1659311472408,1.60026104,1683.1,1682.8,1.78128]
[1659311472617,11.143,1683.3,1682.8,1.78128]
[1659311472618,9.4439,1683.3,1682.8,1.78128]
[1659311472770,3.5808,1683.3,1682.8,1.78128]
[1659311472972,0.446,1683.3,1682.8,1.78128]
[1659311473222,0.446,1683.3,1682.8,2.07816]
[1659311473574,3.946,1683.3,1682.8,0.59376]
[1659311473898,3.946,1683.3,1682.8,0.29688]
[1659311474075,4.246,1683.3,1682.8,0.29688]
[1659311474277,3.0,1683.2,1682.8,0.29688]
[1659311474477,0.2969687,1683.2,1682.8,0.29688]
[1659311474915,0.2969687,1683.2,1682.7,0.34471435]
[1659311475111,3.39501542,1683.2,1682.5,0.34698]
[1659311475280,6.94119872,1683.1,1682.4,0.07165332]
[1659311475473,6.94119872,1683.1,1682.4,0.02165332]
[1659311475474,8.42940702,1683.1,1682.4,0.02165332]
[1659311475673,0.3,1683.0,1682.4,0.02165332]
[1659311475897,0.3,1683.0,1682.3,2.9489]
[1659311476104,0.3,1683.0,1682.3,5.84694672]
[1659311476307,0.3,1683.0,1682.3,6.14397672]
[1659311476712,0.3,1683.0,1682.3,6.48869107]
[1659311477096,0.2970377,1682.9,1682.3,6.48869107]
[1659311477721,0.2970377,1682.9,1682.4,0.297]
[1659311477893,1.55632304,1683.0,1682.4,0.297]
[1659311478082,1.55632304,1683.0,1682.5,3.24276107]
[1659311478283,8.30547236,1683.1,1682.5,5.02431107]
[1659311478483,7.85937236,1683.1,1682.5,5.20029543]
[1659311478699,7.85937236,1683.1,1682.6,2.89804672]
[1659311478700,7.55937236,1683.1,1682.6,2.89804672]
[1659311478928,7.55937236,1683.1,1682.6,3.19497672]
[1659311479133,7.55937236,1683.1,1682.7,0.34471435]
[1659311479483,4.79887236,1683.1,1682.7,0.34471435]
[1659311479717,1.79887236,1683.1,1682.7,5.20024543]
[1659311480703,1.79887236,1683.1,1682.7,3.71567543]
[1659311481030,1.79887236,1683.1,1682.8,0.29691]
[1659311482301,4.79887236,1683.1,1682.7,3.24276107]
[1659311482508,1.79887236,1683.1,1682.7,0.34471435]
[1659311484046,2.09586826,1683.1,1682.7,0.34471435]
[1659311484548,2.69586826,1683.1,1682.7,0.34471435]
[1659311484760,3.0,1683.0,1682.6,0.02154926]
[1659311485358,0.8111343,1682.9,1682.6,0.02154926]
[1659311485506,0.3650343,1682.9,1682.6,0.02154926]
[1659311485706,0.6650343,1682.9,1682.6,0.02154926]
[1659311485906,2.14377829,1682.9,1682.6,0.02154926]
[1659311486141,5.04182501,1682.9,1682.6,0.02154926]
[1659311486349,3.7461,1682.8,1682.6,0.02154926]
[1659311486560,6.64414672,1682.8,1682.6,0.02154926]
[1659311486854,6.71212672,1682.8,1682.6,0.02154926]
[1659311487011,2.89804672,1682.7,1682.6,0.02154926]
[1659311487219,5.89804672,1682.7,1682.6,0.02154926]
[1659311487743,12.16504672,1682.7,1682.6,0.02154926]
[1659311488773,14.09244672,1682.7,1682.6,0.02154926]
[1659311488974,11.1944,1682.7,1682.6,0.02154926]
[1659311491192,3.0,1682.7,1682.6,0.02154926]
[1659311491847,1.86485871,1682.8,1682.6,0.02154926]
[1659311492228,2.16485871,1682.8,1682.6,0.02154926]
[1659311492841,5.16485871,1682.8,1682.6,0.02154926]
[1659311493067,8.06290543,1682.8,1682.6,0.02154926]
[1659311493533,10.93830543,1682.8,1682.6,0.02154926]
[1659311494080,10.93830543,1682.8,1681.0,1.1104648]
[1659311494081,7.32113043,1682.2,1681.0,1.1104648]
[1659311494271,0.2,1682.0,1681.0,9.1609648]
[1659311494467,4.65229632,1682.0,1681.2,0.29722]
[1659311494627,3.3,1681.9,1681.2,0.29722]
[1659311494825,3.3,1681.9,1681.1,0.42600457]
[1659311494826,0.2972556,1681.8,1681.1,0.42600457]
[1659311495027,0.2972556,1681.8,1681.0,9.1609648]
[1659311495263,4.93738502,1681.8,1681.0,9.1609648]
[1659311495463,0.2972917,1681.6,1681.0,9.1609648]
[1659311495706,0.3,1681.5,1681.0,9.1609648]
[1659311496073,3.3,1681.5,1681.0,9.1609648]
[1659311496378,3.5,1681.5,1681.0,9.1609648]
[1659311496579,3.5,1681.5,1681.0,1.1104648]
[1659311496580,3.18105031,1681.2,1681.0,1.1104648]
[1659311496785,6.19804672,1681.1,1681.0,1.1104648]
[1659311496982,6.46602672,1681.1,1681.0,1.1104648]
[1659311497582,6.46602672,1681.1,1680.1,2.9673]
[1659311497583,0.2,1680.7,1680.0,0.59739]
[1659311497790,4.9467,1680.6,1680.0,0.3]
[1659311497986,3.19804672,1680.5,1680.0,0.3]
[1659311498210,3.0,1680.4,1680.0,0.3]
[1659311498386,9.16504672,1680.2,1680.0,0.3]
[1659311498606,5.0,1680.0,1679.3,0.25]
[1659311498962,5.0,1680.0,1679.3,3.75]
[1659311498963,3.0,1679.9,1679.3,3.75]
[1659311499105,3.0,1679.9,1679.2,1.17646415]
[1659311499106,3.3,1679.9,1679.2,1.17646415]
[1659311499308,9.16504672,1679.8,1679.1,0.05]
[1659311499555,6.19804672,1679.7,1679.1,0.05]
[1659311499766,6.26602672,1679.7,1679.1,0.34471435]
[1659311499918,3.66798,1679.7,1679.1,0.34471435]
[1659311500453,3.0,1679.6,1679.1,0.34471435]
[1659311500954,0.2,1679.5,1678.9,0.05]
[1659311501155,0.2,1679.5,1678.8,7.9042]
[1659311501314,3.46602672,1679.5,1678.7,0.4972]
[1659311501516,5.89804672,1679.4,1678.7,0.4472]
[1659311501706,5.89804672,1679.4,1678.7,0.3472]
[1659311501707,6.26602672,1679.4,1678.7,0.3472]
[1659311501921,0.2,1679.2,1679.1,0.0186291]
[1659311502126,0.06798,1679.2,1679.1,0.0186291]
[1659311502327,3.16602672,1679.2,1679.1,0.0186291]
[1659311502525,6.76602672,1679.2,1679.1,0.0186291]
[1659311502710,8.19292108,1679.2,1679.1,0.0186291]
[1659311502948,8.39292108,1679.2,1679.1,0.0186291]
[1659311503246,3.36798,1679.2,1679.1,0.19461346]
[1659311503654,0.36798,1679.2,1679.1,0.19461346]
[1659311503826,0.36798,1679.2,1679.1,0.24011937]
[1659311503827,0.06798,1679.2,1679.1,0.24011937]
[1659311504837,53.06798,1679.2,1679.1,0.06413501]
[1659311505161,53.06798,1679.2,1679.1,0.26413501]
[1659311505536,53.06798,1679.2,1679.1,1.01123501]
[1659311505738,53.06798,1679.2,1679.1,0.56413501]
[1659311505941,53.06798,1679.2,1679.1,0.44011937]
[1659311506140,53.06798,1679.2,1679.1,3.33816609]
[1659311506340,53.0,1679.2,1679.1,3.58526609]
[1659311506578,53.0,1679.2,1679.1,3.29266018]
[1659311506796,0.05,1679.6,1679.1,3.29266018]
[1659311506797,0.05,1679.6,1679.5,6.7]
[1659311506966,3.18848,1680.1,1679.6,4.5]
[1659311507168,0.06798,1680.1,1679.8,0.2]
[1659311507368,53.0,1680.4,1679.8,0.2]
[1659311507713,3.5,1680.3,1679.7,0.29738]
[1659311507897,3.5,1680.3,1679.5,0.05]
[1659311508058,3.5,1680.3,1679.4,0.05]
[1659311508059,2.77594497,1680.0,1679.4,0.05]
[1659311508257,2.77594497,1680.0,1679.2,1.7686765]
[1659311508492,2.77594497,1680.0,1679.2,4.61672322]
[1659311508493,3.3,1679.9,1679.2,4.61672322]
[1659311508694,6.19804672,1679.9,1679.2,1.7186765]
[1659311508879,6.19804672,1679.9,1679.2,4.61672322]
[1659311509207,3.3,1679.9,1679.2,4.96143757]
[1659311509365,0.3,1679.9,1679.2,4.96143757]
[1659311509569,0.3,1679.9,1679.3,2.89804672]
[1659311509809,0.3,1679.9,1679.4,0.34471435]